bitfinex-derivatives/quotes_SOLF0:USTF0_20250424
["timestamp","ask_amount","ask_price","bid_price","bid_amount"]
[1745466082341,10.30577739,148.38,148.27,2.0022]
[1745466082642,10.30577739,148.38,148.3,6.7413]
[1745466083539,6.7402,148.33,148.3,6.7413]
[1745466083845,10.30577739,148.38,148.31,6.741]
[1745466084137,6.7393,148.36,148.31,10.30577739]
[1745466084336,28.5265,148.39,148.31,10.30577739]
[1745466084534,6.7389,148.36,148.31,10.30577739]
[1745466085139,6.7389,148.36,148.33,6.7397]
[1745466085344,6.7384,148.37,148.3,26.5]
[1745466085543,6.7384,148.37,148.33,6.61411762]
[1745466085744,6.61411762,148.38,148.33,13.35401762]
[1745466086544,6.7386,148.37,148.33,13.35401762]
[1745466087244,6.7386,148.37,148.33,6.7399]
[1745466087538,6.7389,148.36,148.33,6.7399]
[1745466087738,6.7389,148.36,148.31,10.33463955]
[1745466087945,10.33463955,148.38,148.3,26.5]
[1745466088245,10.33463955,148.38,148.32,6.7406]
[1745466089147,6.7393,148.35,148.32,6.7406]
[1745466089448,10.33463955,148.38,148.32,6.7406]
[1745466090048,10.33463955,148.38,148.3,26.5]
[1745466090248,6.7397,148.35,148.3,26.5]
[1745466090549,6.7397,148.35,148.32,6.7406]
[1745466091250,10.33463955,148.38,148.3,26.5]
[1745466091452,28.5265,148.39,148.31,10.33463955]
[1745466092254,28.5265,148.39,148.34,6.7395]
[1745466092455,28.5265,148.39,148.31,10.33463955]
[1745466092655,28.5265,148.39,148.32,1.9455]
[1745466092858,6.7382,148.38,148.32,1.9455]
[1745466093955,6.7382,148.38,148.35,6.739]
[1745466094155,533.66,148.42,148.33,10.33463955]
[1745466094455,560.16,148.42,148.35,10.33463955]
[1745466094658,6.737,148.41,148.37,6.7383]
[1745466094955,560.16,148.42,148.35,10.33463955]
[1745466095154,6.7371,148.4,148.36,6.7386]
[1745466095351,560.16,148.42,148.36,6.7386]
[1745466095656,560.16,148.42,148.34,6.7393]
[1745466095855,560.16,148.42,148.33,14.31973955]
[1745466096154,560.16,148.42,148.33,12.26853955]
[1745466096556,6.7382,148.38,148.35,6.7389]
[1745466096855,10.33463955,148.41,148.33,12.26853955]
[1745466097055,10.33463955,148.39,148.31,10.33463955]
[1745466097257,26.5,148.38,148.3,26.5]
[1745466097550,6.7395,148.35,148.32,6.7406]
[1745466098357,6.7398,148.34,148.31,6.7409]
[1745466098957,10.33463955,148.37,148.31,6.7409]
[1745466099361,6.74,148.34,148.3,6.7414]
[1745466099565,10.33463955,148.37,148.3,6.7414]
[1745466101058,6.7405,148.33,148.3,6.7414]
[1745466101856,6.7414,148.31,148.28,8.7225]
[1745466102059,10.33463955,148.33,148.25,357.0]
[1745466102358,26.26,148.34,148.3,6.7413]
[1745466102359,32.9999,148.34,148.3,6.7413]
[1745466102660,6.7399,148.34,148.28,36.59463955]
[1745466104658,6.7399,148.34,148.31,6.741]
[1745466105455,6.7403,148.33,148.3,6.7414]
[1745466106258,10.33463955,148.35,148.28,26.26]
[1745466106656,36.59463955,148.37,148.28,26.26]
[1745466106855,6.7401,148.34,148.28,36.59463955]
[1745466107155,36.59463955,148.37,148.28,36.59463955]
[1745466107454,36.59463955,148.37,148.3,6.7413]
[1745466108058,36.59463955,148.37,148.31,6.741]
[1745466108459,36.59463955,148.37,148.28,26.26]
[1745466108660,10.33463955,148.35,148.28,26.26]
[1745466108956,10.33463955,148.35,148.25,393.59463955]
[1745466109156,6.7409,148.32,148.29,6.7419]
[1745466109357,6.7409,148.32,148.29,13.35980866]
[1745466110257,6.7409,148.32,148.29,6.61790866]
[1745466111060,6.7409,148.32,148.29,13.35950866]
[1745466111462,6.7409,148.32,148.29,6.7416]
[1745466111654,6.7409,148.32,148.29,13.35950866]
[1745466112063,6.7403,148.33,148.3,6.7415]
[1745466112264,6.61790866,148.34,148.29,6.61790866]
[1745466112565,6.61790866,148.34,148.25,383.26]
[1745466112566,6.61790866,148.3,148.25,357.0]
[1745466112758,6.61790866,148.28,148.24,4.1469]
[1745466112963,6.61790866,148.28,148.21,28.2249]
[1745466113163,6.7432,148.27,148.24,6.744]
[1745466113364,28.3192,148.31,148.24,6.744]
[1745466113564,6.61790866,148.28,148.23,6.61790866]
[1745466113863,13.36060866,148.28,148.25,6.7436]
[1745466114258,6.61790866,148.28,148.21,28.2249]
[1745466114464,6.61790866,148.28,148.22,6.61790866]
[1745466114662,6.61790866,148.26,148.21,6.61790866]
[1745466114867,6.61790866,148.3,148.25,6.61790866]
[1745466115067,6.7422,148.29,148.25,13.36170866]
[1745466115263,6.61790866,148.3,148.25,6.61790866]
[1745466115563,6.61790866,148.29,148.24,13.36170866]
[1745466116168,28.3192,148.31,148.24,13.36170866]
[1745466116371,26.26,148.35,148.3,6.61790866]
[1745466116672,6.7405,148.33,148.3,6.61790866]
[1745466116873,6.61790866,148.34,148.3,6.61790866]
[1745466117373,6.7403,148.33,148.3,6.61790866]
[1745466117673,6.61790866,148.34,148.3,6.61790866]
[1745466118169,26.26,148.35,148.3,6.61790866]
[1745466118672,2.0823,148.37,148.32,6.61790866]
[1745466119473,6.61790866,148.36,148.32,6.7403]
[1745466119673,2.0823,148.37,148.32,6.7403]
[1745466119875,6.61790866,148.36,148.32,6.7403]
[1745466120071,6.739,148.36,148.33,6.61790866]
[1745466120267,2.0823,148.37,148.33,6.61790866]
[1745466120573,6.61790866,148.39,148.35,6.61790866]
[1745466120774,26.26,148.4,148.35,6.61790866]
[1745466120976,6.61790866,148.36,148.27,26.26]
[1745466121169,6.61790866,148.35,148.28,6.61790866]
[1745466121371,26.26,148.36,148.32,6.61790866]
[1745466121573,6.61790866,148.35,148.31,6.61790866]
[1745466121771,13.35750866,148.35,148.31,13.35890866]
[1745466122074,6.61790866,148.35,148.31,6.61790866]
[1745466122270,26.26,148.36,148.31,6.61790866]
[1745466122476,32.9988,148.36,148.32,6.7404]
[1745466122775,26.26,148.39,148.33,6.61790866]
[1745466123071,6.7382,148.38,148.34,6.7396]
[1745466123276,32.87790866,148.39,148.34,6.7396]
[1745466124274,6.7385,148.37,148.34,6.7396]
[1745466124779,6.7381,148.38,148.35,6.7392]
[1745466124979,8.62720866,148.41,148.35,6.61790866]
[1745466125275,6.7371,148.4,148.35,6.61790866]
[1745466125778,6.7379,148.39,148.35,13.35690866]
[1745466126075,6.61790866,148.37,148.32,10.53950866]
[1745466126477,6.61790866,148.38,148.34,6.61790866]
[1745466126673,6.61790866,148.38,148.32,3.9216]
[1745466126977,6.7389,148.36,148.33,6.7399]
[1745466127277,6.61790866,148.38,148.33,6.7399]
[1745466127578,6.7388,148.37,148.33,6.7399]
[1745466128174,6.61790866,148.38,148.34,6.61790866]
[1745466128376,6.61790866,148.39,148.34,6.61790866]
[1745466128677,6.61790866,148.37,148.33,6.74]
[1745466128878,6.61790866,148.37,148.32,10.53950866]
[1745466129378,6.7394,148.35,148.32,17.27980866]
[1745466129579,6.61790866,148.38,148.32,10.53950866]
[1745466129974,6.61790866,148.38,148.34,13.35740866]
[1745466130180,6.61790866,148.4,148.34,6.61790866]
[1745466130775,6.7382,148.38,148.35,6.739]
[1745466131778,6.7376,148.39,148.36,6.7388]
[1745466133181,6.7379,148.38,148.35,6.7391]
[1745466133584,6.7376,148.39,148.36,6.7388]
[1745466134183,13.35490866,148.4,148.37,6.738]
[1745466134585,13.35490866,148.4,148.36,6.61790866]
[1745466134586,6.61790866,148.4,148.36,6.61790866]
[1745466134779,6.7377,148.39,148.36,13.35660866]
[1745466135180,6.7373,148.4,148.37,6.738]
[1745466135887,6.7367,148.41,148.36,6.61790866]
[1745466136185,32.87790866,148.42,148.36,6.61790866]
[1745466136885,13.35530866,148.4,148.37,6.7381]
[1745466137086,6.61790866,148.4,148.35,26.48]
[1745466137380,6.7385,148.37,148.35,26.48]
[1745466137586,6.61790866,148.36,148.32,1.8829]
[1745466138383,6.7396,148.35,148.32,8.6233]
[1745466138889,13.35690866,148.36,148.33,6.7401]
[1745466139790,6.61790866,148.39,148.33,6.61790866]
[1745466141288,6.738,148.38,148.35,6.7392]
[1745466141783,13.35540866,148.39,148.36,6.7386]
[1745466141988,6.61790866,148.39,148.35,6.61790866]
[1745466142583,13.35570866,148.39,148.36,6.7386]
[1745466142890,6.61790866,148.39,148.35,6.61790866]
[1745466143085,6.738,148.38,148.35,13.35680866]
[1745466143288,6.61790866,148.39,148.35,6.61790866]
[1745466143487,6.61790866,148.42,148.37,6.61790866]
[1745466143788,6.7364,148.42,148.39,6.7373]
[1745466145192,1.9326,148.45,148.39,6.61790866]
[1745466145392,8.55050866,148.45,148.39,6.61790866]
[1745466145593,8.55050866,148.45,148.39,33.09790866]
[1745466145795,15.28560866,148.45,148.41,6.7363]
[1745466146495,8.55050866,148.45,148.4,6.7368]
[1745466146701,8.55050866,148.45,148.39,33.09790866]
[1745466147294,6.7355,148.44,148.41,6.7363]
[1745466149495,6.7357,148.43,148.4,6.7368]
[1745466150100,6.61790866,148.41,148.36,28.4367]
[1745466150394,6.61790866,148.41,148.37,6.61790866]
[1745466150895,6.61790866,148.41,148.36,28.4367]
[1745466151198,6.7374,148.4,148.37,6.7381]
[1745466151995,6.7375,148.39,148.36,35.1753]
[1745466152295,6.61790866,148.41,148.36,28.4367]
[1745466152497,6.61790866,148.43,148.37,6.61790866]
[1745466152686,6.61790866,148.43,148.41,6.7365]
[1745466152887,6.61790866,148.43,148.36,28.4367]
[1745466153085,6.61790866,148.41,148.36,35.05460866]
[1745466153292,6.61790866,148.41,148.36,26.48]
[1745466153801,6.7375,148.39,148.36,33.2185]
[1745466155303,6.7371,148.4,148.37,6.7384]
[1745466156894,6.7375,148.39,148.36,33.2187]
[1745466157093,13.35540866,148.39,148.36,33.2187]
[1745466157489,6.61790866,148.39,148.33,927.73650866]
[1745466157692,6.61790866,148.39,148.33,570.73650866]
[1745466157997,6.61790866,148.39,148.33,36.99650866]
[1745466159100,6.61790866,148.39,148.35,6.7391]
[1745466159801,6.61790866,148.39,148.36,6.7385]
[1745466160000,6.61790866,148.41,148.35,6.61790866]
[1745466160203,26.48,148.42,148.37,6.61790866]
[1745466160405,33.2164,148.42,148.38,6.7377]
[1745466160700,39.83430866,148.42,148.38,6.7377]
[1745466160902,1.9326,148.45,148.39,6.61790866]
[1745466161103,8.55050866,148.45,148.39,6.61790866]
[1745466161404,13.35370866,148.43,148.39,13.35510866]
[1745466162002,6.7362,148.42,148.38,8.69140866]
[1745466162202,6.61790866,148.41,148.37,32.75790866]
[1745466162404,6.61790866,148.41,148.37,26.14]
[1745466162603,13.35470866,148.41,148.38,6.7379]
[1745466162803,13.35470866,148.41,148.37,26.14]
[1745466162804,6.61790866,148.41,148.37,26.14]
[1745466163005,6.61790866,148.41,148.36,6.61790866]
[1745466163303,6.61790866,148.41,148.36,13.35660866]
[1745466163498,6.61790866,148.41,148.36,6.61790866]
[1745466164404,6.61790866,148.41,148.37,6.7382]
[1745466164902,6.7386,148.37,148.34,6.7396]
[1745466165404,13.35650866,148.37,148.34,6.7396]
[1745466166106,6.61790866,148.35,148.33,6.7401]
[1745466166602,13.35650866,148.37,148.34,6.7397]
[1745466166900,13.35650866,148.37,148.32,6.61790866]
[1745466166901,6.61790866,148.37,148.32,6.61790866]
[1745466167100,13.35730866,148.35,148.32,6.7404]
[1745466167294,6.7394,148.35,148.32,6.7404]
[1745466167903,6.739,148.36,148.33,6.7402]
[1745466168705,6.7393,148.35,148.32,6.7404]
[1745466169001,10.33856279,148.35,148.28,26.14]
[1745466169206,36.47856279,148.35,148.28,32.8822]
[1745466169407,10.33856279,148.33,148.26,2.026]
[1745466169907,6.7411,148.31,148.27,6.7429]
[1745466170403,10.33856279,148.31,148.25,357.0]
[1745466170601,36.49856279,148.31,148.25,357.0]
[1745466170802,36.49856279,148.31,148.24,26.14]
[1745466171106,36.49856279,148.31,148.23,2.0837]
[1745466171306,26.16,148.31,148.23,2.0837]
[1745466171506,6.7417,148.3,148.26,6.7433]
[1745466171706,26.16,148.31,148.23,2.0837]
[1745466172007,6.7423,148.29,148.25,6.7436]
[1745466172206,26.16,148.31,148.23,2.0837]
[1745466172908,6.7417,148.3,148.26,6.7431]
[1745466174104,32.9013,148.31,148.27,6.7428]
[1745466174305,26.16,148.31,148.25,26.16]
[1745466174711,26.16,148.31,148.28,6.7421]
[1745466175009,8.6584,148.32,148.28,6.7421]
[1745466175213,1.9175,148.32,148.25,26.16]
[1745466175408,6.7414,148.31,148.25,26.16]
[1745466175909,8.6583,148.32,148.27,6.7429]
[1745466176306,1.9175,148.32,148.25,26.16]
[1745466176506,6.7416,148.3,148.26,6.7432]
[1745466176711,1.9175,148.32,148.25,26.16]
[1745466177011,6.7419,148.3,148.25,32.9035]
[1745466177206,6.7419,148.3,148.25,6.7435]
[1745466177412,10.33856279,148.27,148.15,26.16]
[1745466177711,10.33856279,148.27,148.19,10.33856279]
[1745466178013,10.33856279,148.27,148.2,1.9041]
[1745466178206,6.7437,148.26,148.2,8.6501]
[1745466178402,10.33856279,148.27,148.2,8.6501]
[1745466178610,10.33856279,148.27,148.2,1.9041]
[1745466179612,6.7437,148.26,148.21,6.7454]
[1745466180012,10.33856279,148.27,148.21,6.7454]
[1745466180213,6.7436,148.26,148.21,6.7454]
[1745466180414,10.33856279,148.27,148.21,6.7454]
[1745466180808,10.33856279,148.27,148.2,1.9041]
[1745466181013,6.7435,148.26,148.22,6.7451]
[1745466181413,26.16,148.29,148.21,10.33856279]
[1745466181614,26.16,148.29,148.23,10.33856279]
[1745466181807,10.33856279,148.31,148.23,36.49856279]
[1745466182112,28.0775,148.32,148.23,36.49856279]
[1745466182614,28.0775,148.32,148.25,10.33856279]
[1745466182817,26.16,148.32,148.26,2.0218]
[1745466183010,36.49856279,148.35,148.26,2.0218]
[1745466183205,6.7405,148.33,148.29,6.7417]
[1745466184116,6.7407,148.32,148.29,6.7417]
[1745466184723,6.7403,148.33,148.29,6.7417]
[1745466185210,6.7403,148.33,148.27,26.16]
[1745466185417,6.7399,148.34,148.3,6.7416]
[1745466185710,36.49856279,148.35,148.27,36.49856279]
[1745466185917,36.49856279,148.35,148.31,6.7409]
[1745466186618,6.7398,148.34,148.31,6.7409]
[1745466186821,30.0646,148.39,148.29,10.33856279]
[1745466187018,40.40316279,148.39,148.3,1.9334]
[1745466187415,6.7387,148.37,148.33,6.7401]
[1745466189219,6.7389,148.36,148.33,6.7401]
[1745466189721,6.7385,148.37,148.33,6.7401]
[1745466190916,10.33856279,148.35,148.31,6.7407]
[1745466191421,6.7407,148.32,148.29,6.7416]
[1745466191623,6.7407,148.32,148.28,25.98]
[1745466192422,6.7407,148.32,148.28,32.722]
[1745466192622,17.07886279,148.33,148.28,25.98]
[1745466192922,10.33856279,148.33,148.28,25.98]
[1745466193221,17.07896279,148.33,148.29,6.7417]
[1745466193825,6.7407,148.32,148.29,6.7417]
[1745466194121,10.33856279,148.33,148.29,6.7417]
[1745466194326,10.33856279,148.33,148.3,6.7415]
[1745466194918,10.33856279,148.33,148.29,6.7418]
[1745466195627,17.07886279,148.33,148.29,6.7418]
[1745466195921,10.33856279,148.33,148.28,32.7223]
[1745466196119,10.33856279,148.33,148.28,6.7423]
[1745466197020,6.7408,148.32,148.29,6.7419]
[1745466197220,10.33856279,148.33,148.29,6.7419]
[1745466197425,10.33856279,148.35,148.26,2.0218]
[1745466198123,6.7399,148.34,148.26,2.0218]
[1745466198424,6.7399,148.34,148.3,6.7411]
[1745466198924,6.7399,148.34,148.31,6.741]
[1745466199439,17.07876279,148.33,148.26,2.0218]
[1745466199826,10.33856279,148.33,148.26,2.0218]
[1745466200526,10.33856279,148.34,148.26,2.0218]
[1745466200826,10.33856279,148.34,148.31,6.7408]
[1745466201029,10.33856279,148.34,148.26,2.0218]
[1745466201227,17.07846279,148.34,148.26,2.0218]
[1745466201528,17.07846279,148.34,148.31,6.7411]
[1745466201836,6.7403,148.33,148.26,2.0218]
[1745466202326,6.7414,148.31,148.26,2.0218]
[1745466202522,10.33856279,148.32,148.26,2.0218]
[1745466202724,10.33856279,148.3,148.25,25.98]
[1745466202916,10.33856279,148.3,148.22,29.8827]
[1745466203117,10.33856279,148.3,148.22,31.8381]
[1745466203526,17.08056279,148.3,148.26,6.7431]
[1745466203825,10.33856279,148.3,148.22,31.8381]
[1745466204127,10.33856279,148.3,148.26,6.7433]
[1745466204425,36.31856279,148.32,148.22,31.8381]
[1745466205229,6.7416,148.3,148.27,6.7429]
[1745466205619,36.31856279,148.32,148.22,31.8381]
[1745466205822,6.7423,148.29,148.26,6.7433]
[1745466206424,6.7425,148.28,148.25,6.7437]
[1745466206627,10.33856279,148.3,148.22,31.8381]
[1745466207032,1.9155,148.31,148.27,6.7429]
[1745466207234,1.9155,148.31,148.23,10.33856279]
[1745466207732,6.742,148.3,148.26,6.7431]
[1745466208532,6.742,148.3,148.23,10.33856279]
[1745466208533,8.6568,148.31,148.23,10.33856279]
[1745466208731,6.7413,148.31,148.23,10.33856279]
[1745466208935,36.31856279,148.32,148.29,6.7419]
[1745466209229,6.7411,148.31,148.23,10.33856279]
[1745466209429,6.7411,148.31,148.27,6.7426]
[1745466210025,6.7411,148.31,148.28,6.7423]
[1745466210226,43.05936279,148.32,148.23,10.33856279]
[1745466210426,36.31856279,148.32,148.23,10.33856279]
[1745466210627,36.31856279,148.32,148.29,6.7419]
[1745466210933,17.07936279,148.32,148.29,6.7419]
[1745466211132,6.7408,148.32,148.29,6.7419]
[1745466211531,6.7408,148.32,148.3,6.7415]
[1745466211732,6.7408,148.32,148.26,26.0]
[1745466212833,6.7408,148.32,148.29,6.7417]
[1745466213034,6.7404,148.33,148.26,26.0]
[1745466213434,6.7404,148.33,148.3,6.7413]
[1745466214028,6.7407,148.32,148.3,6.7413]
[1745466215337,6.61836983,148.33,148.28,6.61836983]
[1745466215832,6.61836983,148.33,148.31,6.7407]
[1745466216436,6.61836983,148.33,148.32,6.7406]
[1745466216934,6.7382,148.38,148.32,6.61836983]
[1745466217129,6.61836983,148.38,148.34,6.61836983]
[1745466218332,6.61836983,148.38,148.36,6.7388]
[1745466219234,1.9041,148.39,148.31,14.43348093]
[1745466220036,6.7382,148.38,148.35,6.7392]
[1745466220533,1.9041,148.39,148.31,14.43348093]
[1745466220738,6.7384,148.37,148.34,6.7396]
[1745466221140,6.7381,148.38,148.35,6.7392]
[1745466221540,1.9041,148.39,148.31,14.43348093]
[1745466222539,6.738,148.38,148.35,6.739]
[1745466223239,1.9041,148.39,148.34,6.7397]
[1745466223240,6.7384,148.37,148.34,6.7397]
[1745466223437,10.33368093,148.38,148.31,4.0998]
[1745466223843,6.7391,148.36,148.33,6.7399]
[1745466225443,6.7386,148.37,148.34,6.7397]
[1745466225644,1.9041,148.39,148.31,14.43348093]
[1745466226644,8.6419,148.39,148.36,6.7386]
[1745466227144,1.9041,148.39,148.31,14.43348093]
[1745466228444,8.6418,148.39,148.36,6.7385]
[1745466228647,35.95368093,148.44,148.35,10.33368093]
[1745466229547,1.9618,148.45,148.34,25.62]
[1745466229749,27.6652,148.49,148.4,10.33368093]
[1745466229944,25.62,148.49,148.4,35.95368093]
[1745466230339,6.7337,148.48,148.4,35.95368093]
[1745466230847,6.7337,148.48,148.44,6.7349]
[1745466231143,10.33368093,148.48,148.4,25.62]
[1745466231347,25.62,148.49,148.4,35.95368093]
[1745466231747,6.7339,148.47,148.44,6.7349]
[1745466232447,6.7335,148.48,148.44,6.7349]
[1745466232949,6.7335,148.48,148.45,6.7347]
[1745466233549,25.62,148.49,148.42,10.33368093]
[1745466234248,32.3531,148.49,148.46,6.7342]
[1745466234850,25.62,148.49,148.42,10.33368093]
[1745466235051,1.9618,148.51,148.42,10.33368093]
[1745466235850,6.7328,148.5,148.47,6.7338]
[1745466236047,25.62,148.52,148.44,35.95368093]
[1745466236247,6.7314,148.53,148.49,6.7325]
[1745466236755,6.7314,148.53,148.46,10.33368093]
[1745466237151,35.95368093,148.57,148.48,10.33368093]
[1745466237347,35.95368093,148.57,148.49,3.8843]
[1745466237852,6.7299,148.56,148.49,3.8843]
[1745466238351,6.7304,148.55,148.49,3.8843]
[1745466238755,35.95368093,148.57,148.49,3.8843]
[1745466238955,35.95368093,148.57,148.52,6.7314]
[1745466240258,6.7303,148.55,148.52,6.7314]
[1745466241059,6.7314,148.53,148.49,3.8843]
[1745466241258,17.06508093,148.53,148.49,1.9074]
[1745466241960,17.06508093,148.53,148.49,8.6402]
[1745466242561,6.7316,148.52,148.49,8.6402]
[1745466242960,10.33368093,148.53,148.49,8.6402]
[1745466243257,17.06488093,148.53,148.49,8.6402]
[1745466243458,17.06488093,148.53,148.49,6.7328]
[1745466243761,10.33368093,148.53,148.48,25.62]
[1745466244056,10.33368093,148.51,148.45,29.6565]
[1745466244363,10.33368093,148.51,148.47,6.7334]
[1745466244560,10.33368093,148.49,148.42,25.6]
[1745466244760,10.33368093,148.47,148.42,25.6]
[1745466245059,6.7347,148.46,148.39,29.6789]
[1745466245254,6.7347,148.46,148.43,6.7356]
[1745466246157,6.7347,148.46,148.39,29.6789]
[1745466246362,6.7347,148.45,148.42,6.736]
[1745466247361,6.7345,148.46,148.43,6.7356]
[1745466247561,35.93368093,148.47,148.43,6.7356]
[1745466247862,42.66788093,148.47,148.43,6.7356]
[1745466248063,42.66788093,148.47,148.44,6.7351]
[1745466249058,35.93368093,148.47,148.45,6.7344]
[1745466249363,25.6,148.51,148.42,10.33368093]
[1745466249563,25.6,148.51,148.43,25.6]
[1745466249963,25.6,148.51,148.47,6.7335]
[1745466249964,6.7325,148.5,148.47,6.7335]
[1745466252164,6.733,148.49,148.46,6.7342]
[1745466252463,10.33368093,148.5,148.43,25.6]
[1745466252663,6.7336,148.48,148.45,6.7346]
[1745466252865,10.33368093,148.48,148.43,25.6]
[1745466253067,10.33368093,148.48,148.4,25.36]
[1745466253260,17.06728093,148.48,148.4,25.36]
[1745466254164,10.33368093,148.48,148.4,25.36]
[1745466254365,10.33368093,148.46,148.4,25.36]
[1745466254964,6.7349,148.45,148.42,6.7358]
[1745466255162,10.33368093,148.44,148.4,25.36]
[1745466255364,10.33368093,148.44,148.39,4.0789]
[1745466255968,17.06918093,148.44,148.41,6.7363]
[1745466256264,10.33368093,148.44,148.39,4.0789]
[1745466257564,6.7348,148.45,148.39,4.0789]
[1745466257766,25.36,148.47,148.39,4.0789]
[1745466258465,25.36,148.47,148.44,6.7351]
[1745466259166,25.36,148.47,148.39,14.41258093]
[1745466259764,35.69368093,148.5,148.41,10.33368093]
[1745466259966,25.36,148.5,148.42,25.36]
[1745466260165,32.0928,148.5,148.47,6.7337]
[1745466260763,8.7338,148.52,148.49,6.7329]
[1745466260969,8.7338,148.52,148.43,10.33368093]
[1745466261168,2.0021,148.52,148.43,10.33368093]
[1745466262971,12.33578093,148.52,148.43,10.33368093]
[1745466263871,6.7323,148.51,148.48,6.7332]
[1745466264473,6.7325,148.5,148.47,6.7337]
[1745466265572,6.7325,148.5,148.48,6.7334]
[1745466265774,6.7322,148.51,148.48,6.7334]
[1745466266168,6.7325,148.5,148.48,6.7334]
[1745466266373,6.7325,148.5,148.47,6.7337]
[1745466266575,12.33578093,148.52,148.43,10.33368093]
[1745466266769,6.7327,148.5,148.43,10.33368093]
[1745466268074,6.7327,148.5,148.47,6.7338]
[1745466268972,6.7327,148.5,148.48,6.7334]
[1745466269165,12.33578093,148.52,148.43,10.33368093]
[1745466269371,35.69368093,148.54,148.45,10.33368093]
[1745466269665,35.69368093,148.54,148.46,3.9678]
[1745466269866,6.7314,148.53,148.5,6.7321]
[1745466271373,10.33368093,148.52,148.42,357.0]
[1745466271676,10.33368093,148.47,148.38,29.342]
[1745466272071,10.33368093,148.47,148.41,6.7362]
[1745466272271,10.33368093,148.47,148.38,39.67568093]
[1745466272678,6.7344,148.46,148.41,6.7363]
[1745466274279,17.06868093,148.45,148.39,6.7371]
[1745466274581,10.33368093,148.45,148.39,6.7371]
[1745466275479,6.7353,148.44,148.39,6.7371]
[1745466276477,6.7353,148.44,148.4,6.737]
[1745466276678,6.7349,148.45,148.38,29.342]
[1745466276979,6.7349,148.45,148.4,6.7367]
[1745466277175,10.33368093,148.47,148.4,6.7367]
[1745466277474,10.33368093,148.47,148.38,29.342]
[1745466277779,10.33368093,148.45,148.38,29.342]
[1745466277978,6.736,148.43,148.39,6.7371]
[1745466278278,6.736,148.43,148.38,29.342]
[1745466278479,6.7355,148.44,148.38,29.342]
[1745466278680,6.7355,148.44,148.4,6.737]
[1745466279674,10.33368093,148.47,148.38,29.342]
[1745466279881,10.33368093,148.47,148.39,10.33368093]
[1745466280475,25.36,148.48,148.39,10.33368093]
[1745466280980,6.7339,148.47,148.43,6.7353]
[1745466281378,6.7339,148.47,148.39,10.33368093]
[1745466282278,6.7339,148.47,148.43,6.7352]
[1745466282579,6.7344,148.46,148.43,6.7352]
[1745466283278,6.734,148.47,148.43,6.7352]
[1745466283478,6.734,148.47,148.44,6.7352]
[1745466284081,6.7343,148.46,148.43,6.7355]
[1745466284280,10.33368093,148.47,148.39,10.33368093]
[1745466284584,6.7348,148.45,148.42,6.7358]
[1745466284784,10.33368093,148.45,148.38,29.342]
[1745466285985,6.7353,148.44,148.4,6.737]
[1745466286183,6.7353,148.44,148.38,29.342]
[1745466286383,10.33368093,148.45,148.38,29.342]
[1745466286583,6.7345,148.46,148.42,6.7358]
[1745466286983,25.98,148.48,148.4,10.33368093]
[1745466287185,6.734,148.47,148.4,10.33368093]
[1745466287881,6.734,148.47,148.43,6.7354]
[1745466288184,6.7344,148.46,148.43,6.7354]
[1745466288485,10.33368093,148.47,148.41,6.7362]
[1745466288984,10.33368093,148.45,148.38,29.342]
[1745466289378,6.7361,148.42,148.39,6.7374]
[1745466289781,26.0,148.44,148.39,6.7374]
[1745466289989,6.7358,148.43,148.39,6.7374]
[1745466290689,6.7358,148.43,148.4,6.737]
[1745466292082,10.33368093,148.45,148.41,6.7365]
[1745466292387,26.0,148.45,148.38,10.33368093]
[1745466293790,6.7352,148.44,148.41,6.7363]
[1745466294286,10.33368093,148.43,148.35,30.0342]
[1745466294591,10.33368093,148.41,148.35,4.0342]
[1745466294890,6.7374,148.4,148.37,6.7381]
[1745466295093,2.0038,148.43,148.35,4.0342]
[1745466296194,10.33368093,148.42,148.35,4.0342]
[1745466296398,10.33368093,148.38,148.29,36.33368093]